[Event "Late-Titled-Tuesday-Blitz-March-12-2024"]
[Site "Chess.com"]
[Date "2024.03.12"]
[Round "11"]
[White "publicaccountcze"]
[Black "Bugcrusher"]
[Result "1-0"]
[WhiteElo "2238"]
[BlackElo "2499"]
[TimeControl "180+1"]
[EndTime "15:59:54 PDT"]
[Termination "publicaccountcze won by resignation"]

1. e4 {[%clk 0:02:37.6]} 1... c6 {[%clk 0:02:56.1]} 2. d4 {[%clk 0:02:36.6]}
2... d5 {[%clk 0:02:45.3]} 3. e5 {[%clk 0:02:36.4]} 3... c5 {[%clk 0:02:45.4]}
4. c3 {[%clk 0:02:32]} 4... Nc6 {[%clk 0:02:43.6]} 5. Nf3 {[%clk 0:02:10]} 5...
cxd4 {[%clk 0:02:41.3]} 6. cxd4 {[%clk 0:02:07.9]} 6... Bg4 {[%clk 0:02:41.7]}
7. Be2 {[%clk 0:02:03.8]} 7... e6 {[%clk 0:02:39.7]} 8. O-O {[%clk 0:02:02.6]}
8... Qb6 {[%clk 0:02:36.4]} 9. Be3 {[%clk 0:01:50.4]} 9... Qxb2 {[%clk
0:02:35.9]} 10. Nbd2 {[%clk 0:01:50]} 10... Qb6 {[%clk 0:02:35.3]} 11. Rb1
{[%clk 0:01:48.6]} 11... Qc7 {[%clk 0:02:33.3]} 12. Qb3 {[%clk 0:01:40.3]} 12...
Bb4 {[%clk 0:02:28.3]} 13. Rfc1 {[%clk 0:01:37.3]} 13... Bxd2 {[%clk 0:02:27.6]}
14. Bxd2 {[%clk 0:01:32.7]} 14... Rb8 {[%clk 0:02:05.9]} 15. Rxc6 {[%clk
0:01:30.4]} 1-0

[Event "Late-Titled-Tuesday-Blitz-March-12-2024"]
[Site "Chess.com"]
[Date "2024.03.12"]
[Round "11"]
[White "IraZyne"]
[Black "Kopytkin"]
[Result "0-1"]
[WhiteElo "2334"]
[BlackElo "2438"]
[TimeControl "180+1"]
[EndTime "16:00:12 PDT"]
[Termination "Kopytkin won by resignation"]

1. e4 {[%clk 0:03:00.9]} 1... Nf6 {[%clk 0:02:58.6]} 2. e5 {[%clk 0:03:00.4]}
2... Nd5 {[%clk 0:02:58.3]} 3. Nc3 {[%clk 0:03:00.9]} 3... Nxc3 {[%clk
0:02:56.6]} 4. dxc3 {[%clk 0:03:01]} 4... d5 {[%clk 0:02:56.9]} 5. f4 {[%clk
0:02:58.1]} 5... c5 {[%clk 0:02:55.9]} 6. Be3 {[%clk 0:02:57.3]} 6... e6 {[%clk
0:02:49.8]} 7. Nf3 {[%clk 0:02:56.6]} 7... Nc6 {[%clk 0:02:49.5]} 8. Be2 {[%clk
0:02:55.6]} 8... b6 {[%clk 0:02:41.1]} 9. O-O {[%clk 0:02:55]} 9... Bb7 {[%clk
0:02:41.3]} 10. Qe1 {[%clk 0:02:52.7]} 10... g6 {[%clk 0:02:41.2]} 11. Rd1
{[%clk 0:02:51.3]} 11... Qc7 {[%clk 0:02:37.3]} 12. Bf2 {[%clk 0:02:35]} 12...
Be7 {[%clk 0:02:34.9]} 13. Bh4 {[%clk 0:02:33.5]} 13... O-O-O {[%clk 0:02:33.8]}
14. Bxe7 {[%clk 0:02:29.8]} 14... Qxe7 {[%clk 0:02:34.1]} 15. Qg3 {[%clk
0:02:28.7]} 15... h6 {[%clk 0:02:31.3]} 16. Rfe1 {[%clk 0:02:26.1]} 16... Rdg8
{[%clk 0:02:30.6]} 17. Bb5 {[%clk 0:02:24.1]} 17... g5 {[%clk 0:02:18]} 18. f5
{[%clk 0:02:22.8]} 18... exf5 {[%clk 0:02:17.8]} 19. Rxd5 {[%clk 0:02:20.3]}
19... Nd4 {[%clk 0:01:58.9]} 20. Nxd4 {[%clk 0:02:13.7]} 20... Bxd5 {[%clk
0:01:57.8]} 21. Nxf5 {[%clk 0:02:13.7]} 21... Qe6 {[%clk 0:01:47.3]} 22. b3
{[%clk 0:02:06.9]} 22... Qxf5 {[%clk 0:01:33.4]} 0-1

[Event "Late-Titled-Tuesday-Blitz-March-12-2024"]
[Site "Chess.com"]
[Date "2024.03.12"]
[Round "11"]
[White "Stanbad1"]
[Black "Mikasinski"]
[Result "0-1"]
[WhiteElo "2524"]
[BlackElo "2658"]
[TimeControl "180+1"]
[EndTime "16:00:16 PDT"]
[Termination "Mikasinski won by checkmate"]

1. d4 {[%clk 0:03:00.9]} 1... Nf6 {[%clk 0:03:00.1]} 2. Bg5 {[%clk 0:03:00.1]}
2... e6 {[%clk 0:03:00.5]} 3. Nd2 {[%clk 0:02:59.7]} 3... c5 {[%clk 0:02:59.6]}
4. e3 {[%clk 0:02:58.4]} 4... cxd4 {[%clk 0:03:00.1]} 5. exd4 {[%clk 0:02:58.5]}
5... Qa5 {[%clk 0:03:00.8]} 6. Nf3 {[%clk 0:02:53.1]} 6... Ne4 {[%clk
0:02:59.3]} 7. Bf4 {[%clk 0:02:50.8]} 7... Nc6 {[%clk 0:02:59.2]} 8. Bd3 {[%clk
0:02:49.2]} 8... Nxd2 {[%clk 0:02:58.7]} 9. Qxd2 {[%clk 0:02:48.8]} 9... Qxd2+
{[%clk 0:02:58.5]} 10. Bxd2 {[%clk 0:02:48.2]} 10... d6 {[%clk 0:02:56]} 11. c3
{[%clk 0:02:48]} 11... b6 {[%clk 0:02:55.2]} 12. Ke2 {[%clk 0:02:48]} 12... Bb7
{[%clk 0:02:55.6]} 13. Rhe1 {[%clk 0:02:46.3]} 13... Be7 {[%clk 0:02:55.9]} 14.
Bf4 {[%clk 0:02:46.2]} 14... O-O-O {[%clk 0:02:56.2]} 15. Kf1 {[%clk 0:02:45.8]}
15... h6 {[%clk 0:02:55.3]} 16. d5 {[%clk 0:02:42.8]} 16... exd5 {[%clk
0:02:52.4]} 17. Rad1 {[%clk 0:02:42.2]} 17... g5 {[%clk 0:02:51.7]} 18. Bg3
{[%clk 0:02:40.7]} 18... Bf6 {[%clk 0:02:49.3]} 19. Bf5+ {[%clk 0:02:40.3]}
19... Kb8 {[%clk 0:02:48.3]} 20. Rxd5 {[%clk 0:02:40.8]} 20... Ne5 {[%clk
0:02:40.8]} 21. Nxe5 {[%clk 0:02:40]} 21... Bxd5 {[%clk 0:02:40.1]} 22. Nd7+
{[%clk 0:02:39.7]} 22... Rxd7 {[%clk 0:02:38.2]} 23. Bxd7 {[%clk 0:02:39.8]}
23... Kc7 {[%clk 0:02:38.6]} 24. Bf5 {[%clk 0:02:37.4]} 24... Bxa2 {[%clk
0:02:37.5]} 25. Ra1 {[%clk 0:02:34.9]} 25... Bc4+ {[%clk 0:02:38.1]} 26. Kg1
{[%clk 0:02:32]} 26... a5 {[%clk 0:02:38.4]} 27. h3 {[%clk 0:02:29.8]} 27... Re8
{[%clk 0:02:37.9]} 28. f4 {[%clk 0:02:27.1]} 28... Re2 {[%clk 0:02:35.1]} 29.
Rd1 {[%clk 0:02:25.5]} 29... gxf4 {[%clk 0:02:22.8]} 30. Bxf4 {[%clk 0:02:25.4]}
30... Be5 {[%clk 0:02:23.4]} 31. Bxh6 {[%clk 0:02:24.2]} 31... Rxb2 {[%clk
0:02:21.4]} 32. Bf8 {[%clk 0:02:22.6]} 32... a4 {[%clk 0:02:19.6]} 33. Ra1
{[%clk 0:02:16.7]} 33... Ra2 {[%clk 0:02:16.4]} 34. Rc1 {[%clk 0:02:09.7]} 34...
a3 {[%clk 0:02:15.8]} 35. Bh6 {[%clk 0:02:03.6]} 35... Bd5 {[%clk 0:02:15.8]}
36. g4 {[%clk 0:02:02.9]} 36... Rg2+ {[%clk 0:02:13.3]} 37. Kf1 {[%clk
0:02:03.1]} 37... Rh2 {[%clk 0:02:13.9]} 38. Kg1 {[%clk 0:02:03.1]} 38... Bg3
{[%clk 0:02:11.8]} 39. Rc2 {[%clk 0:01:52.8]} 39... Rh1# {[%clk 0:02:11.2]} 0-1

[Event "Late-Titled-Tuesday-Blitz-March-12-2024"]
[Site "Chess.com"]
[Date "2024.03.12"]
[Round "11"]
[White "Shahdad2007"]
[Black "stollenmonster"]
[Result "0-1"]
[WhiteElo "2586"]
[BlackElo "2837"]
[TimeControl "180+1"]
[EndTime "16:01:08 PDT"]
[Termination "stollenmonster won by resignation"]

1. Nf3 {[%clk 0:03:00.9]} 1... Nf6 {[%clk 0:02:59.9]} 2. c4 {[%clk 0:02:59.7]}
2... e6 {[%clk 0:03:00.8]} 3. g3 {[%clk 0:02:59.1]} 3... d5 {[%clk 0:03:01.7]}
4. Bg2 {[%clk 0:02:59.6]} 4... Be7 {[%clk 0:03:02.2]} 5. O-O {[%clk 0:02:58.8]}
5... O-O {[%clk 0:03:02.8]} 6. d4 {[%clk 0:02:59]} 6... Ne4 {[%clk 0:03:03.3]}
7. Nc3 {[%clk 0:02:55.6]} 7... f5 {[%clk 0:03:03.8]} 8. Qc2 {[%clk 0:02:51.8]}
8... c6 {[%clk 0:03:04.3]} 9. Be3 {[%clk 0:02:50.7]} 9... Bd7 {[%clk 0:03:04.7]}
10. Rad1 {[%clk 0:02:50]} 10... Be8 {[%clk 0:03:05.2]} 11. Ne5 {[%clk
0:02:47.6]} 11... Nd7 {[%clk 0:03:05.6]} 12. f3 {[%clk 0:02:47.2]} 12... Nxe5
{[%clk 0:03:02.9]} 13. dxe5 {[%clk 0:02:46]} 13... Nxc3 {[%clk 0:02:54.1]} 14.
Qxc3 {[%clk 0:02:43.4]} 14... g5 {[%clk 0:02:54.6]} 15. f4 {[%clk 0:02:32.9]}
15... Bh5 {[%clk 0:02:54.1]} 16. Rd2 {[%clk 0:02:31.3]} 16... a5 {[%clk
0:02:52.2]} 17. a3 {[%clk 0:02:31]} 17... Rc8 {[%clk 0:02:49.9]} 18. Rfd1 {[%clk
0:02:29.5]} 18... b5 {[%clk 0:02:45.5]} 19. cxd5 {[%clk 0:02:27.4]} 19... cxd5
{[%clk 0:02:45.4]} 20. Qb3 {[%clk 0:02:27.4]} 20... b4 {[%clk 0:02:41.9]} 21.
fxg5 {[%clk 0:02:11.8]} 21... Bxg5 {[%clk 0:02:32.2]} 22. h4 {[%clk 0:02:09.8]}
22... Be7 {[%clk 0:02:24.2]} 23. Bh6 {[%clk 0:02:04.9]} 23... Qb6+ {[%clk
0:02:07.9]} 24. Kh2 {[%clk 0:02:03.6]} 24... Rfd8 {[%clk 0:02:08.3]} 25. Be3
{[%clk 0:01:58.3]} 25... Qb5 {[%clk 0:01:57.5]} 26. axb4 {[%clk 0:01:52.3]}
26... Bxb4 {[%clk 0:01:54.2]} 27. Rc2 {[%clk 0:01:36.1]} 27... a4 {[%clk
0:01:51]} 28. Rxc8 {[%clk 0:01:35.6]} 28... Rxc8 {[%clk 0:01:51.9]} 29. Qd3
{[%clk 0:01:28]} 29... Bxe2 {[%clk 0:01:50.9]} 30. Qxb5 {[%clk 0:01:27.1]} 30...
Bxb5 {[%clk 0:01:51.5]} 31. Rd4 {[%clk 0:01:19.5]} 31... Bc5 {[%clk 0:01:49.2]}
0-1

[Event "Late-Titled-Tuesday-Blitz-March-12-2024"]
[Site "Chess.com"]
[Date "2024.03.12"]
[Round "11"]
[White "KaydenTroffChess"]
[Black "artin10862"]
[Result "1-0"]
[WhiteElo "2843"]
[BlackElo "2888"]
[TimeControl "180+1"]
[EndTime "16:01:18 PDT"]
[Termination "KaydenTroffChess won by resignation"]

1. d4 {[%clk 0:03:00.9]} 1... d5 {[%clk 0:02:56.5]} 2. Nf3 {[%clk 0:03:00.5]}
2... Nf6 {[%clk 0:02:55.1]} 3. Bf4 {[%clk 0:03:00.4]} 3... c5 {[%clk 0:02:33.9]}
4. e3 {[%clk 0:03:00.6]} 4... Qb6 {[%clk 0:02:30.8]} 5. Nc3 {[%clk 0:02:56.9]}
5... a6 {[%clk 0:02:30.4]} 6. dxc5 {[%clk 0:02:36.2]} 6... Qxc5 {[%clk
0:02:21.7]} 7. Be2 {[%clk 0:02:34.6]} 7... Nc6 {[%clk 0:02:19.3]} 8. O-O {[%clk
0:02:34.5]} 8... Bf5 {[%clk 0:02:10.8]} 9. Na4 {[%clk 0:02:07]} 9... Qa5 {[%clk
0:02:08.6]} 10. c3 {[%clk 0:02:06.2]} 10... e6 {[%clk 0:02:05.1]} 11. b4 {[%clk
0:02:04.3]} 11... Qd8 {[%clk 0:02:04.6]} 12. Nd4 {[%clk 0:02:03.9]} 12... Nxd4
{[%clk 0:02:00.1]} 13. Qxd4 {[%clk 0:02:03.8]} 13... Nd7 {[%clk 0:01:53.4]} 14.
c4 {[%clk 0:01:33.9]} 14... dxc4 {[%clk 0:01:50]} 15. Bf3 {[%clk 0:01:32.6]}
15... Qc8 {[%clk 0:01:30.8]} 16. Nb6 {[%clk 0:01:25.7]} 16... Nxb6 {[%clk
0:01:25.3]} 17. Qxb6 {[%clk 0:01:26.6]} 1-0

[Event "Late-Titled-Tuesday-Blitz-March-12-2024"]
[Site "Chess.com"]
[Date "2024.03.12"]
[Round "11"]
[White "The_Straightforward_Rook"]
[Black "yaguigor"]
[Result "1-0"]
[WhiteElo "2478"]
[BlackElo "2589"]
[TimeControl "180+1"]
[EndTime "16:01:39 PDT"]
[Termination "The_Straightforward_Rook won by resignation"]

1. c4 {[%clk 0:02:42]} 1... e6 {[%clk 0:02:58.3]} 2. Nc3 {[%clk 0:02:39.9]} 2...
d5 {[%clk 0:02:58.8]} 3. d4 {[%clk 0:02:40.3]} 3... c6 {[%clk 0:02:58.6]} 4.
cxd5 {[%clk 0:02:39.4]} 4... exd5 {[%clk 0:02:56.4]} 5. Nf3 {[%clk 0:02:38.2]}
5... Bf5 {[%clk 0:02:54.2]} 6. Bf4 {[%clk 0:02:28.3]} 6... Bd6 {[%clk
0:02:49.9]} 7. Bxd6 {[%clk 0:02:24.6]} 7... Qxd6 {[%clk 0:02:49.2]} 8. Qb3
{[%clk 0:02:24.8]} 8... b5 {[%clk 0:02:38.6]} 9. e3 {[%clk 0:02:23.6]} 9... a5
{[%clk 0:02:36.5]} 10. Be2 {[%clk 0:02:19.6]} 10... a4 {[%clk 0:02:32.1]} 11.
Qd1 {[%clk 0:02:18.8]} 11... Nd7 {[%clk 0:02:32.7]} 12. Rc1 {[%clk 0:02:17.8]}
12... Ne7 {[%clk 0:02:30.1]} 13. O-O {[%clk 0:02:17.4]} 13... O-O {[%clk
0:02:29.4]} 14. h3 {[%clk 0:02:12]} 14... h6 {[%clk 0:02:23.9]} 15. Bd3 {[%clk
0:02:09.7]} 15... Bxd3 {[%clk 0:02:22.6]} 16. Qxd3 {[%clk 0:02:10.6]} 16... f5
{[%clk 0:02:21]} 17. Ne2 {[%clk 0:02:05]} 17... Ng6 {[%clk 0:02:03.1]} 18. g3
{[%clk 0:01:59.8]} 18... Qe6 {[%clk 0:02:00.4]} 19. Nf4 {[%clk 0:01:57.4]} 19...
Nxf4 {[%clk 0:01:58.4]} 20. gxf4 {[%clk 0:01:58.3]} 20... Ra6 {[%clk 0:01:53.3]}
21. Kh2 {[%clk 0:01:58.2]} 21... Qe4 {[%clk 0:01:52.1]} 22. Ne1 {[%clk
0:01:47.9]} 22... Qe6 {[%clk 0:01:45.1]} 23. Rg1 {[%clk 0:01:47]} 23... Nf6
{[%clk 0:01:43.9]} 24. Nf3 {[%clk 0:01:41.9]} 24... Ne4 {[%clk 0:01:42.8]} 25.
Rg2 {[%clk 0:01:42.5]} 25... Rf6 {[%clk 0:01:38.6]} 26. Ne5 {[%clk 0:01:42.1]}
26... Qe8 {[%clk 0:01:32]} 27. f3 {[%clk 0:01:41.9]} 27... Nd6 {[%clk
0:01:30.3]} 28. Rcg1 {[%clk 0:01:27.8]} 28... Ra7 {[%clk 0:01:28.8]} 29. Qc3
{[%clk 0:01:21.3]} 29... Nc4 {[%clk 0:01:26.8]} 30. b3 {[%clk 0:01:20.8]} 30...
axb3 {[%clk 0:01:25.4]} 31. axb3 {[%clk 0:01:21.7]} 31... Nxe5 {[%clk
0:01:18.1]} 32. fxe5 {[%clk 0:01:21.9]} 32... Re6 {[%clk 0:01:17.6]} 33. Qc5
{[%clk 0:01:15.4]} 33... Kh7 {[%clk 0:01:16.1]} 34. Qxa7 {[%clk 0:01:14.7]} 1-0

[Event "Late-Titled-Tuesday-Blitz-March-12-2024"]
[Site "Chess.com"]
[Date "2024.03.12"]
[Round "11"]
[White "RianKapriaga"]
[Black "Synctel"]
[Result "1-0"]
[WhiteElo "2271"]
[BlackElo "1917"]
[TimeControl "180+1"]
[EndTime "16:01:44 PDT"]
[Termination "RianKapriaga won on time"]

1. d4 {[%clk 0:03:00]} 1... Nf6 {[%clk 0:02:55.3]} 2. Nf3 {[%clk 0:03:00.9]}
2... d5 {[%clk 0:02:54.7]} 3. e3 {[%clk 0:03:01.8]} 3... b6 {[%clk 0:02:45.8]}
4. b3 {[%clk 0:03:02.7]} 4... Bb7 {[%clk 0:02:39.6]} 5. Be2 {[%clk 0:03:03.6]}
5... e6 {[%clk 0:02:34.5]} 6. O-O {[%clk 0:03:04.5]} 6... Be7 {[%clk 0:02:30.3]}
7. Bb2 {[%clk 0:03:05.4]} 7... Ne4 {[%clk 0:02:25.2]} 8. Nbd2 {[%clk 0:03:06.3]}
8... f5 {[%clk 0:02:24.6]} 9. Ne5 {[%clk 0:03:06.3]} 9... O-O {[%clk 0:02:24.9]}
10. f3 {[%clk 0:03:05.7]} 10... Nxd2 {[%clk 0:02:17.4]} 11. Qxd2 {[%clk
0:03:06.6]} 11... Nd7 {[%clk 0:02:14.8]} 12. c4 {[%clk 0:03:03.9]} 12... Nxe5
{[%clk 0:02:01.9]} 13. dxe5 {[%clk 0:03:04.8]} 13... dxc4 {[%clk 0:02:00.6]} 14.
Qxd8 {[%clk 0:03:05.7]} 14... Raxd8 {[%clk 0:01:54.3]} 15. Bxc4 {[%clk
0:03:06.6]} 15... Bd5 {[%clk 0:01:54.5]} 16. Be2 {[%clk 0:03:00.4]} 16... Bc5
{[%clk 0:01:36.8]} 17. Bd4 {[%clk 0:02:59.6]} 17... Ba3 {[%clk 0:01:16.7]} 18.
Rfd1 {[%clk 0:02:48.8]} 18... c5 {[%clk 0:01:08]} 19. Bc3 {[%clk 0:02:48.6]}
19... Bc6 {[%clk 0:00:59.4]} 20. Rd6 {[%clk 0:02:46.6]} 20... Rxd6 {[%clk
0:00:47.5]} 21. exd6 {[%clk 0:02:47.5]} 21... Rd8 {[%clk 0:00:43.3]} 22. Rd1
{[%clk 0:02:46.5]} 22... Kf7 {[%clk 0:00:37.9]} 23. Be5 {[%clk 0:02:45.5]} 23...
g6 {[%clk 0:00:29]} 24. Kf2 {[%clk 0:02:45.2]} 24... Ke8 {[%clk 0:00:21.2]} 25.
h3 {[%clk 0:02:44.8]} 25... Kd7 {[%clk 0:00:21.3]} 26. g4 {[%clk 0:02:45.7]}
26... Rc8 {[%clk 0:00:20.2]} 27. h4 {[%clk 0:02:42.2]} 27... b5 {[%clk
0:00:15.7]} 28. h5 {[%clk 0:02:39.3]} 28... Bd5 {[%clk 0:00:14.1]} 29. Bxb5+
{[%clk 0:02:37.5]} 29... Bc6 {[%clk 0:00:13.2]} 30. Bc4 {[%clk 0:02:36.6]} 30...
Bb4 {[%clk 0:00:10.6]} 31. gxf5 {[%clk 0:02:27.7]} 31... exf5 {[%clk 0:00:07.1]}
32. hxg6 {[%clk 0:02:27.7]} 32... hxg6 {[%clk 0:00:08]} 33. Rg1 {[%clk
0:02:27.2]} 1-0

[Event "Late-Titled-Tuesday-Blitz-March-12-2024"]
[Site "Chess.com"]
[Date "2024.03.12"]
[Round "11"]
[White "Zq1"]
[Black "Speed-O-Sonic"]
[Result "1-0"]
[WhiteElo "2611"]
[BlackElo "2464"]
[TimeControl "180+1"]
[EndTime "16:02:08 PDT"]
[Termination "Zq1 won by resignation"]

1. d4 {[%clk 0:03:00.9]} 1... d5 {[%clk 0:02:59.2]} 2. c4 {[%clk 0:03:00.7]}
2... e6 {[%clk 0:02:58.4]} 3. Nc3 {[%clk 0:03:00]} 3... c5 {[%clk 0:02:57.6]} 4.
cxd5 {[%clk 0:02:59.3]} 4... cxd4 {[%clk 0:02:57.7]} 5. Qxd4 {[%clk 0:02:59.4]}
5... Nc6 {[%clk 0:02:56.9]} 6. Qd1 {[%clk 0:02:59.1]} 6... exd5 {[%clk
0:02:56.6]} 7. Qxd5 {[%clk 0:02:59.7]} 7... Be6 {[%clk 0:02:56.8]} 8. Qxd8+
{[%clk 0:02:58.9]} 8... Rxd8 {[%clk 0:02:57.7]} 9. e3 {[%clk 0:02:58.5]} 9...
Nb4 {[%clk 0:02:57.9]} 10. Bb5+ {[%clk 0:02:57.3]} 10... Ke7 {[%clk 0:02:56.8]}
11. Kf1 {[%clk 0:02:57.3]} 11... Nf6 {[%clk 0:02:48.3]} 12. Nf3 {[%clk
0:02:56.3]} 12... a6 {[%clk 0:01:53.9]} 13. Be2 {[%clk 0:02:54.1]} 13... Ne4
{[%clk 0:01:54.4]} 14. Nd4 {[%clk 0:02:50.5]} 14... Nxc3 {[%clk 0:01:34.9]} 15.
bxc3 {[%clk 0:02:49.8]} 15... Nd5 {[%clk 0:01:30]} 16. Nxe6 {[%clk 0:02:40.8]}
16... fxe6 {[%clk 0:01:26.9]} 17. Bb2 {[%clk 0:02:34.1]} 17... Kf7 {[%clk
0:01:24.9]} 18. c4 {[%clk 0:02:32.7]} 18... Nb4 {[%clk 0:01:23.6]} 19. a3 {[%clk
0:02:27.4]} 19... Nc2 {[%clk 0:01:21.5]} 20. Ra2 {[%clk 0:02:20.1]} 20... Rd2
{[%clk 0:01:01.1]} 21. Bh5+ {[%clk 0:02:10.3]} 21... Ke7 {[%clk 0:00:44.4]} 22.
h4 {[%clk 0:02:08.7]} 22... Kd7 {[%clk 0:00:39.1]} 23. Rh3 {[%clk 0:02:06.5]}
23... Bxa3 {[%clk 0:00:33.4]} 24. Bxa3 {[%clk 0:01:51.3]} 24... Nxe3+ {[%clk
0:00:32.1]} 25. Rxe3 {[%clk 0:01:49.8]} 25... Rxa2 {[%clk 0:00:33]} 26. Rd3+
{[%clk 0:01:48.3]} 26... Kc8 {[%clk 0:00:29.9]} 27. Bf7 {[%clk 0:01:41.9]} 27...
Rd8 {[%clk 0:00:29.8]} 28. Bxe6+ {[%clk 0:01:38.2]} 28... Kc7 {[%clk 0:00:30.2]}
29. Bd5 {[%clk 0:01:38.4]} 29... b5 {[%clk 0:00:27.2]} 30. cxb5 {[%clk
0:01:32.6]} 30... axb5 {[%clk 0:00:28.1]} 31. Rc3+ {[%clk 0:01:27.8]} 1-0

[Event "Late-Titled-Tuesday-Blitz-March-12-2024"]
[Site "Chess.com"]
[Date "2024.03.12"]
[Round "11"]
[White "Adar_07"]
[Black "ChristopherYoo"]
[Result "0-1"]
[WhiteElo "2837"]
[BlackElo "3011"]
[TimeControl "180+1"]
[EndTime "16:02:09 PDT"]
[Termination "ChristopherYoo won on time"]

1. e4 {[%clk 0:03:00.9]} 1... c5 {[%clk 0:02:59.3]} 2. Nf3 {[%clk 0:03:00.5]}
2... e6 {[%clk 0:02:59.5]} 3. d4 {[%clk 0:03:00.3]} 3... cxd4 {[%clk 0:03:00.4]}
4. Nxd4 {[%clk 0:03:01.2]} 4... Nf6 {[%clk 0:03:00.3]} 5. Nc3 {[%clk 0:03:01.5]}
5... Nc6 {[%clk 0:02:59.7]} 6. Ndb5 {[%clk 0:03:02]} 6... Bc5 {[%clk 0:02:59]}
7. Nd6+ {[%clk 0:03:01.4]} 7... Ke7 {[%clk 0:02:59.1]} 8. Bf4 {[%clk 0:03:02.1]}
8... e5 {[%clk 0:02:59.5]} 9. Nf5+ {[%clk 0:03:02.6]} 9... Kf8 {[%clk
0:02:59.7]} 10. Be3 {[%clk 0:03:01.3]} 10... Bb4 {[%clk 0:02:58.2]} 11. Bc4
{[%clk 0:02:56.2]} 11... d5 {[%clk 0:02:49.4]} 12. exd5 {[%clk 0:02:54.1]} 12...
Na5 {[%clk 0:02:48.2]} 13. Bd3 {[%clk 0:01:57.9]} 13... e4 {[%clk 0:02:47.7]}
14. Nxg7 {[%clk 0:01:34.2]} 14... Kxg7 {[%clk 0:02:20]} 15. Be2 {[%clk
0:01:32.1]} 15... Qxd5 {[%clk 0:02:10]} 16. Qc1 {[%clk 0:01:14.8]} 16... Bg4
{[%clk 0:02:07.1]} 17. Bd2 {[%clk 0:00:17.7]} 17... Qh5 {[%clk 0:02:02.8]} 18.
f3 {[%clk 0:00:08.6]} 18... exf3 {[%clk 0:01:50.1]} 19. gxf3 {[%clk 0:00:09.5]}
19... Qh4+ {[%clk 0:01:49.9]} 20. Kd1 {[%clk 0:00:10]} 20... Rad8 {[%clk
0:01:47.3]} 21. fxg4 {[%clk 0:00:04.2]} 21... Bxc3 {[%clk 0:01:46.7]} 22. bxc3
{[%clk 0:00:04.4]} 22... Ne4 {[%clk 0:01:46]} 23. Bd3 {[%clk 0:00:03.7]} 23...
Nf2+ {[%clk 0:01:43.5]} 24. Ke2 {[%clk 0:00:03.4]} 24... Rhe8+ {[%clk
0:01:43.3]} 25. Kf3 {[%clk 0:00:02.5]} 25... Nxd3 {[%clk 0:01:41.1]} 0-1

[Event "Late-Titled-Tuesday-Blitz-March-12-2024"]
[Site "Chess.com"]
[Date "2024.03.12"]
[Round "11"]
[White "Eloist"]
[Black "Likvidator228"]
[Result "1-0"]
[WhiteElo "2495"]
[BlackElo "2603"]
[TimeControl "180+1"]
[EndTime "16:02:11 PDT"]
[Termination "Eloist won by resignation"]

1. e4 {[%clk 0:03:00.9]} 1... c5 {[%clk 0:02:49.2]} 2. Nf3 {[%clk 0:02:59.6]}
2... g6 {[%clk 0:02:49.6]} 3. c3 {[%clk 0:02:58.9]} 3... Bg7 {[%clk 0:02:49.2]}
4. d4 {[%clk 0:02:58.8]} 4... cxd4 {[%clk 0:02:50.1]} 5. cxd4 {[%clk 0:02:59.3]}
5... d5 {[%clk 0:02:50.4]} 6. e5 {[%clk 0:02:59.5]} 6... a6 {[%clk 0:02:50.4]}
7. Bd3 {[%clk 0:02:51.5]} 7... Nc6 {[%clk 0:02:48.7]} 8. h3 {[%clk 0:02:47.9]}
8... f6 {[%clk 0:02:48.6]} 9. exf6 {[%clk 0:02:46]} 9... Nxf6 {[%clk 0:02:48.4]}
10. O-O {[%clk 0:02:44.7]} 10... O-O {[%clk 0:02:47.7]} 11. Nc3 {[%clk
0:02:44.2]} 11... Qd6 {[%clk 0:02:47.7]} 12. Re1 {[%clk 0:02:41.4]} 12... Bf5
{[%clk 0:02:43.7]} 13. Bxf5 {[%clk 0:02:33.2]} 13... gxf5 {[%clk 0:02:43.9]} 14.
Qb3 {[%clk 0:02:27.3]} 14... b5 {[%clk 0:02:41.5]} 15. Bg5 {[%clk 0:02:25.4]}
15... Ne4 {[%clk 0:02:18.5]} 16. Qxd5+ {[%clk 0:01:45.7]} 16... Qxd5 {[%clk
0:02:18.6]} 17. Nxd5 {[%clk 0:01:45.8]} 17... Nxg5 {[%clk 0:02:18.9]} 18. Nxg5
{[%clk 0:01:45.6]} 18... Bxd4 {[%clk 0:02:16.4]} 19. Ne6 {[%clk 0:01:39.1]}
19... Bxb2 {[%clk 0:02:09.9]} 20. Rab1 {[%clk 0:01:36.1]} 20... Ba3 {[%clk
0:02:09.9]} 21. Nxf8 {[%clk 0:01:28.2]} 21... Rxf8 {[%clk 0:02:10.8]} 22. Re6
{[%clk 0:01:24.2]} 22... Rd8 {[%clk 0:01:21.7]} 23. Rd1 {[%clk 0:01:13.2]} 23...
Bd6 {[%clk 0:01:20.9]} 24. Nxe7+ {[%clk 0:00:58.6]} 24... Bxe7 {[%clk
0:01:14.8]} 25. Rxd8+ {[%clk 0:00:56.6]} 25... Bxd8 {[%clk 0:01:14.6]} 26. Rxc6
{[%clk 0:00:56.4]} 26... Be7 {[%clk 0:00:57.8]} 27. Rxa6 {[%clk 0:00:54]} 27...
b4 {[%clk 0:00:58]} 28. Kf1 {[%clk 0:00:50.5]} 28... Kf7 {[%clk 0:00:57.3]} 29.
Ke2 {[%clk 0:00:50.1]} 1-0